Cogmind - Beta 16 @@@ ROGUE MODE // 2026.02.04 @ 07:50:03 Player: shapeshifter Result: Destroyed by 03F62-D with Overtuned Quantum Rifle Performance ------------- Evolutions (7) 3500 Regions Visited (18) 3600 Robots Destroyed (253) 1265 Value Destroyed (11041) 11041 Prototype IDs (147) 2940 Alien Tech Used (4) 800 Bonus (14694) 14694 TOTAL SCORE: 37840 Bonus ------- High Alert Combat Kills 1320 Follower Combat Kills 8577 Registered with UFD 300 Met Optimus in HQ 500 Met Warlord at Base 500 MAIN.C Attacked Warlord 500 Warlord Defense Kills 100 Met R17 at Cetus 500 Used Core Reset Matrix 3000 Met Optimus at Protoforge 1000 Friendly Fire -1603 Cogmind --------- Core Integrity 0/1300 Matter 285/300 Energy 94/100 System Corruption 26% Temperature Cool (12) Movement Hovering (60) Location -3/Protoforge Parts ------- > --- POWER (2) -------- (None) > --- PROPULSION (6) --- Airjet > --- UTILITY (10) ----- A0-MCA's Component Scanner > --- WEAPON (3) ------- DM-GVY's Chainsaw > --- INVENTORY (5) ---- Concept Rapid Grenade Launcher LU-1G1's Laser Shovel Large Botcube Peak State ------------ > --- POWER ------------ Micro Antimatter Reactor Improved Quantum Reactor > --- PROPULSION ------- Heavy Shield Leg Experimental VSS Leg Experimental VSS Leg Experimental VSS Leg Experimental VSS Leg > --- UTILITY ---------- Experimental Heat Sink High-capacity Storage Unit Experimental Optical Array Advanced Sensor Array Advanced Signal Interpreter Experimental Core Analyzer Experimental Core Analyzer Experimental Kinecellerator Graphene Brace A0-MCA's Component Scanner > --- WEAPON ----------- Concept XC Strikerail Concept XC Strikerail Concept XC Strikerail > --- INVENTORY -------- MA-1KR's Cyclogen Experimental Surge Thruster Experimental Surge Thruster Experimental Surge Thruster ID Mask Experimental Weapon Shielding Transdimensional Reconstructor Transdimensional Reconstructor Transdimensional Reconstructor High-powered Transdimensional Reconstructor Vortex Shotgun Vortex Shotgun Concept XC Strikerail Advanced Datajack Advanced Remote Datajack LU-1G1's Laser Shovel DM-GVY's Chainsaw Thermal Lance Large Botcube [Rating: 207] Favorites ----------- Power Fission Core Engine Light Ion Engine Power Core Fission Core Reactor Quantum Reactor Propulsion Improved Carbon-fiber Leg Treads Light Treads Leg Improved Carbon-fiber Leg Wheel Compact Wheel Hover Unit Improved Antigrav System Flight Unit Cooled Cesium-ion Thruster Utility High-capacity Storage Unit Device Experimental Terrain Scanner Storage High-capacity Storage Unit Processor Enhanced Optical Array Hackware Advanced Hacking Suite Protection Improved Medium Armor Plating Weapon Flak Cannon Energy Gun Advanced Variable Charge Gun Energy Cannon Matter Neutralizer Ballistic Gun Assault Rifle Ballistic Cannon Flak Cannon Launcher Heavy Missile Launcher Special Weapon LU-1G1's Laser Shovel Slashing Weapon Sigix Broadsword Special Melee Weapon Improved Datajack Build | -11 -10 -9 -8 -7 -7 -7 -7 -5 -5 -5 -5 -4 -4 -4 -4 -3 -3 -3 ------- Run | Yrd Mat Mat Mat Fac Sto Rec Scr Fac Upp Upp War Pro Fac Ext Cet Res Qua Frg Slots Evolved 14 | . . 2 2 2 . . . 4 . . . . 2 . . 2 . . Power 1 | . . . . . . . . 1 . . . . . . . . . . Propulsion 4 | . . 1 1 1 . . . 1 . . . . . . . . . . Utility 8 | . . 1 1 1 . . . 2 . . . . 2 . . 1 . . Weapon 1 | . . . . . . . . . . . . . . . . 1 . . Parts Attached 257 | 7 5 30 5 17 13 8 15 25 6 1 10 5 14 11 11 7 15 52 Power 28 | 1 1 3 1 1 1 1 1 3 . . 1 . . 2 3 . 1 8 Engine 8 | 1 1 3 . 1 1 . . . . . . . . . . . . 1 Core 8 | . . . 1 . . 1 1 3 . . . . . 1 . . . 1 Reactor 12 | . . . . . . . . . . . 1 . . 1 3 . 1 6 Propulsion 77 | 2 . 9 2 11 3 1 2 11 3 . 1 3 4 3 3 . 5 14 Treads 28 | 2 . 6 . . . . . 4 2 . . 1 3 2 3 . 5 . Leg 34 | . . 3 2 11 1 1 2 1 1 . 1 2 . . . . . 9 Wheel 6 | . . . . . . . . 4 . . . . 1 1 . . . . Hover 2 | . . . . . . . . . . . . . . . . . . 2 Flight 7 | . . . . . 2 . . 2 . . . . . . . . . 3 Utility 79 | 2 2 9 1 3 4 2 4 5 2 . 3 2 4 5 2 5 6 18 Device 31 | 1 . 2 1 1 1 1 1 2 1 . 3 2 1 2 1 2 4 5 Storage 2 | 1 1 . . . . . . . . . . . . . . . . . Processor 19 | . . 3 . . . . 2 2 . . . . 2 1 . 1 1 7 Hackware 6 | . . . . . 1 . . 1 . . . . . . . 1 . 3 Protection 21 | . 1 4 . 2 2 1 1 . 1 . . . 1 2 1 1 1 3 Artifact . | . . . . . . . . . . . . . . . . . . . Weapon 73 | 2 2 9 1 2 5 4 8 6 1 1 5 . 6 1 3 2 3 12 Energy Gun 11 | . . 1 . . 1 1 . . . . 2 . 1 . 2 2 . 1 Energy Cannon 13 | . . 2 1 1 . . 3 . 1 . 1 . 3 . . . 1 . Ballistic Gun 18 | 2 2 3 . . 1 . . 1 . . . . 1 . 1 . . 7 Ballistic Cannon 9 | . . 2 . . . . 1 3 . 1 1 . 1 . . . . . Launcher 7 | . . . . 1 1 . 1 . . . . . . . . . . 4 Special Weapon 8 | . . . . . 1 . 3 1 . . 1 . . 1 . . 1 . Impact Weapon . | . . . . . . . . . . . . . . . . . . . Slashing Weapon 4 | . . . . . . 2 . 1 . . . . . . . . 1 . Piercing Weapon . | . . . . . . . . . . . . . . . . . . . Special Melee Weapon 3 | . . 1 . . 1 1 . . . . . . . . . . . . Unidentified Prototypes 22 | . . 1 . . 3 . 2 1 1 . 7 . 1 . 3 1 2 . Corrupted Parts 2 | . . . . . . . . . . . . . . 1 . . . 1 System Corruption 14 | . . . . . . . . . . . . . . 8 . . . 6 Parts Lost 71 | . 1 3 . . 1 3 2 2 . . 1 2 5 4 2 1 7 37 Power 13 | . 1 2 . . . 1 . 1 . . . . . 1 . . 1 6 Propulsion 14 | . . . . . . 1 1 1 . . . 1 2 2 . . 1 5 Utility 30 | . . 1 . . . 1 1 . . . 1 . 3 1 1 1 3 17 Weapon 14 | . . . . . 1 . . . . . . 1 . . 1 . 2 9 Highest Loss Streak 17 | . 1 1 . . 1 3 1 1 . . 1 2 2 1 1 1 3 17 To Critical Strikes 1 | . . . . . . . . . . . . . . 1 . . . . Average Backups 15 | 2 17 19 19 19 20 19 17 12 13 13 13 12 13 13 15 13 14 15 Power . | . . . . . . . 1 1 1 1 1 1 1 1 1 1 1 1 Propulsion 1 | . . . 4 8 7 7 2 . . . . . . . . 1 . 1 Utility 6 | . 10 8 7 5 8 8 6 5 7 7 6 4 4 4 5 4 4 2 Weapon 4 | . 5 8 5 4 1 1 2 2 2 2 3 5 5 5 5 5 4 4 Tool/Special . | . . . . . . . . . . . . . . . . . . . Unused Backups 153 | . 3 15 4 4 4 5 20 19 . 1 10 9 4 16 5 4 16 14 Power 7 | . . . . . . . 1 4 . . . . . . . 1 . 1 Propulsion 20 | . . . . 1 1 1 2 4 . . 1 1 1 3 1 . 2 2 Utility 72 | . 2 7 3 2 1 3 13 7 . 1 6 3 . 2 3 2 10 7 Weapon 48 | . 1 8 1 1 2 1 3 3 . . 2 4 3 11 1 1 3 3 Tool/Special 6 | . . . . . . . 1 1 . . 1 1 . . . . 1 1 Average Slot Usage (%) 90 | . 100 99 99 99 99 99 89 87 93 94 90 85 75 86 85 84 78 80 Engine 2 | . 14 10 2 1 7 . . . . . . . . . . . . . Core 3 | . . . 6 5 . 5 7 8 11 11 4 . . 2 . . . . Reactor 2 | . . . . . . . . . . . 2 5 5 4 9 9 8 6 Treads 16 | . 28 30 . . . . . 11 32 35 35 31 22 23 15 14 13 4 Leg 11 | . . 2 36 38 38 37 37 3 1 . . . . . . . . 14 Device 11 | . 4 . 17 15 7 8 9 9 11 11 10 14 17 18 25 21 20 18 Storage 6 | . 14 11 9 7 7 7 7 5 5 5 5 5 5 5 5 4 4 3 Processor 10 | . . 10 9 7 7 7 7 16 11 11 11 11 9 15 10 9 11 16 Hackware 1 | . . . . . 6 6 . 4 . . . . . . . 3 . . Protection 5 | . 9 10 . 6 6 7 7 . 4 5 5 2 3 4 4 5 6 1 Energy Gun 1 | . . . . . 3 4 . . . . . . . . 5 13 4 . Energy Cannon 3 | . . 2 18 14 10 4 2 . 3 4 4 2 7 9 4 . 2 1 Ballistic Gun 2 | . 28 4 . . . . . 2 . . . . . . . . . 6 Ballistic Cannon 3 | . . 14 . . . . 2 7 7 5 6 7 . . . . . . Peak Build Rating 207 | 7 11 25 36 49 50 51 67 106 102 96 113 119 132 133 155 171 188 207 Average Rating 84 | 5 10 20 32 47 49 49 48 91 96 95 102 112 119 122 143 167 168 164 On Entrance 80 | . 7 11 25 36 49 50 50 62 92 96 96 112 111 110 118 153 169 177 Avg Prop Armor Cover (%) 6 | . . . . 3 . 4 4 12 2 . . 3 1 2 2 . . 9 Naked Turns . | . . . . . . . . . . . . . . . . . . . Heaviest Build 133 | 12 54 66 58 72 72 69 84 90 97 95 128 133 130 104 112 117 119 108 Greatest Support 240 | 40 40 60 65 90 92 92 81 105 153 153 153 161 189 195 240 240 240 225 Greatest Overweight (x) 8 | . 1 1 . . . . 1 8 . . . . 1 2 . . . 1 Average Overweight (x) . | . . . . . . . . 1 . . . . . . . . . . Largest Inventory Capacity 20 | 8 20 20 20 20 20 20 20 20 20 20 20 20 20 20 20 20 20 20 Average Capacity 19 | 7 18 20 20 20 20 20 20 20 20 20 20 20 20 20 20 20 20 18 Most Carried 20 | 5 20 20 20 20 20 20 20 20 20 20 20 20 20 20 20 20 20 20 Average Carried 18 | 2 17 19 19 19 19 19 18 18 19 19 18 19 19 18 19 19 19 17 Final Capacity 20 | 8 20 20 20 20 20 20 20 20 20 20 20 20 20 20 20 20 20 5 Final Carried 20 | 4 19 20 20 20 20 20 20 20 20 20 20 20 20 20 18 20 17 4 Class Distribution -------------------- 24% | Skirmisher 21% | Mutant 19% | Commander-Mutant 9% | Scavenger-Mutant 8% | Scavenger-Skirmisher 6% | Commander-Skirmisher 6% | Scavenger-Tank 3% | Scavenger-Assassin Dominant Class ---------------- Mutant | -10/Materials Scavenger-Mutant | -9/Materials Mutant | -8/Materials Mutant | -7/Factory Mutant | -7/Storage Commander-Mutant | -7/Recycling Commander-Mutant | -7/Scraptown Skirmisher | -5/Factory Skirmisher | -5/Upper Caves Skirmisher | -5/Upper Caves Commander-Skirmisher | -5/Warlord Skirmisher | -4/Proximity Caves Skirmisher | -4/Factory Scavenger-Skirmisher | -4/Extension Scavenger-Skirmisher | -4/Cetus Scavenger-Tank | -3/Research Scavenger-Tank | -3/Quarantine Scavenger-Skirmisher | -3/Protoforge Resources | -11 -10 -9 -8 -7 -7 -7 -7 -5 -5 -5 -5 -4 -4 -4 -4 -3 -3 -3 ----------- Run | Yrd Mat Mat Mat Fac Sto Rec Scr Fac Upp Upp War Pro Fac Ext Cet Res Qua Frg Matter Collected 8942 | 302 437 1266 344 238 335 125 399 1371 302 51 275 553 224 339 195 246 490 1450 Remotely 10 | . . . . . . . . . . . . . . . . 10 . . Salvage Created 10568 | 101 544 1255 482 297 900 529 510 1135 123 . 49 236 400 808 . 628 664 1907 Parts 491 | 13 28 94 18 16 42 14 27 66 3 . . 14 15 8 . 20 27 86 Haulers Intercepted 5 | . 2 1 . . 2 . . . . . . . . . . . . . Recyclers Shooed 11 | . 1 3 . . 1 . . 3 . . . . . 2 . 1 . . Parts Field Recycled . | . . . . . . . . . . . . . . . . . . . Retrieved Matter . | . . . . . . . . . . . . . . . . . . . Parts Self-Destructed 25 | . . . . . . . . . . . . 25 . . . . . . Prevented . | . . . . . . . . . . . . . . . . . . . Parts Restored . | . . . . . . . . . . . . . . . . . . . Kills | -11 -10 -9 -8 -7 -7 -7 -7 -5 -5 -5 -5 -4 -4 -4 -4 -3 -3 -3 ------- Run | Yrd Mat Mat Mat Fac Sto Rec Scr Fac Upp Upp War Pro Fac Ext Cet Res Qua Frg Combat Hostiles Destroyed 198 | . 6 39 9 8 18 3 10 18 . . 1 9 7 7 . 7 10 46 Melee 2 | . . . . . . . . . . . . . . . . 1 . 1 Guns 70 | . 6 5 . . 1 1 . 3 . . . . . . . 6 9 39 Cannons 96 | . . 33 8 4 9 2 5 15 . . 1 9 4 4 . . 1 1 AOE 18 | . . 1 . 4 7 . 5 . . . . . . . . . . 1 Classes Destroyed 33 | 1 5 4 . 1 2 2 4 1 . . . 1 . . . 1 1 10 Worker 7 | . 1 4 . . 1 1 . . . . . . . . . . . . Builder 11 | . . 3 1 . 3 1 . 3 . . . . . . . . . . Tunneler 6 | 5 . . . . . . . 1 . . . . . . . . . . Hauler 5 | . 2 1 . . 2 . . . . . . . . . . . . . Recycler 11 | . 2 1 . . . 3 . 1 . . . . . 3 . 1 . . Mechanic 2 | . . . . . 1 . . 1 . . . . . . . . . . Operator 1 | . . 1 . . . . . . . . . . . . . . . . Drone 27 | . . . . . . . . . . . . . . . . . . 27 Turret 1 | . . . . . . . 1 . . . . . . . . . . . Watcher 11 | . 2 5 . 1 1 . . 1 . . . . . . . . 1 . Swarmer 25 | . . 12 . 4 4 . . 2 . . . 1 . . . 1 1 . Saboteur 1 | . . . . . . . . . . . . . . . . 1 . . Grunt 57 | . 6 17 6 . 5 1 . 7 . . 1 2 3 3 . 3 2 1 Brawler 1 | . . . . . . 1 . . . . . . . . . . . . Duelist 2 | . . . . . . . . . . . . 2 . . . . . . Researcher 1 | . . . . . . . . . . . . . . . . . . 1 Sentry 27 | . . 10 3 2 5 . . 4 . . . . . 2 . . . 1 Demolisher 1 | . . . . . . 1 . . . . . . . . . . . . Specialist 3 | . . . . . . . . . . . . . . . . . . 3 Hunter 6 | . . . . . 2 . . 1 . . . . 1 . . . 2 . Programmer 23 | . . . . 2 2 . . 4 . . . 4 3 2 . 2 4 . Hotshot 5 | . . . . . . . . . . . . . . . . . . 5 Decapitator 3 | . . . . . . . . . . . . . . . . . . 3 Striker 2 | . . . . . . . . . . . . . . . . . . 2 Executioner 2 | . . . . . . . . . . . . . . . . . . 2 Fortress 1 | . . . . . . . . . . . . . . . . . 1 . V-Series 1 | . . . . . . . . . . . . . . . . . . 1 Federalist 2 | . . . . . . . 2 . . . . . . . . . . . Ranger 2 | . . . . . . . . . . . . . . . . . . 2 Guru 2 | . . . . . . . 1 . . . . . . . . . . 1 Scrapper 7 | . . . . . . . 7 . . . . . . . . . . . Elite 1 | . . . . . . . . . . . . . . . . . . 1 Scrapoid 1 | . . . . . . . . . . . . . . . . . . 1 Botcube 4 | . . . . . . . . 1 1 . . 1 . . . . . 1 Decomposer 1 | . . . . . . . . . 1 . . . . . . . . . Thug 1 | . . . . . . . . . . . . . . . . 1 . . Savage 1 | . . . . . . . . . 1 . . . . . . . . . Best Kill Streak 25 | 3 4 5 4 4 9 2 5 4 . . 1 2 3 4 . 3 5 25 Combat Bots Only 25 | . 3 4 3 4 8 1 5 3 . . 1 2 3 4 . 3 5 25 Max Kills in Single Turn 4 | 1 1 4 2 4 3 1 4 2 1 . 1 1 2 2 . 1 2 2 Gunslinging 1 | . . . . . . . . . . . . . . . . . . 1 Exploded 4 | . . 1 . 4 2 . 4 . . . . . . . . . . 1 Melee 1 | . . . . . . . . . . . . . . . . 1 . 1 Uniques/NPCs Destroyed . | . . . . . . . . . . . . . . . . . . . Combat | -11 -10 -9 -8 -7 -7 -7 -7 -5 -5 -5 -5 -4 -4 -4 -4 -3 -3 -3 -------- Run | Yrd Mat Mat Mat Fac Sto Rec Scr Fac Upp Upp War Pro Fac Ext Cet Res Qua Frg Hostile Shots Fired 1408 | . 44 184 31 79 159 52 41 74 . . 47 72 72 92 17 50 190 204 Missed 432 | . 13 55 15 40 66 13 16 13 . . 17 23 23 30 4 17 47 40 Intercepted 2 | . . . . . . . . . . . . . . . . . . 2 Hits 976 | . 31 129 16 39 93 39 25 61 . . 30 49 49 62 13 33 143 164 Melee 41 | . . . . . . . . . . . . 9 . . . 2 . 30 Projectile 935 | . 31 129 16 39 93 39 25 61 . . 30 40 49 62 13 31 143 134 AOE 5 | . . . . . 1 1 . . . . . . 1 . . . . 2 Critical Strikes 89 | . 3 2 2 . . 3 2 5 . . . 8 6 5 3 2 12 36 Actively Blocked 40 | . . . . . . . . . . . . . . . 3 2 12 23 Damage Taken 22264 | . 387 1467 258 318 1081 451 512 1233 75 . 556 859 1337 1342 367 956 3989 7076 Core 2188 | . 138 201 18 12 97 36 95 59 . . . . 120 126 75 67 199 945 Absorbed by Shields 940 | . . . . . . 89 . . . . 65 360 414 12 . . . . Reduced by Siege Mode 593 | . . . . . . . . . . . . . . . . . 593 . Redirected to Shielding 198 | . . . . . . . . . . . . . . 54 . . . 144 Regen/Repaired (Parts) 388 | . . . . . . . . . . . 310 . . . . . . 78 Core Remaining (%) 74 | 100 44 49 96 . . . 65 . . . . 94 . . 72 . . . Volleys Fired 784 | 14 39 106 23 24 57 11 28 88 7 . 5 62 33 46 17 42 83 99 Largest 3 | 2 2 2 2 2 2 2 1 2 2 . 2 2 2 2 2 3 3 3 Hottest 480 | 40 40 136 143 150 155 155 80 98 98 . 102 105 210 210 210 480 268 96 Shots Fired 1479 | 28 78 209 46 46 108 23 27 163 11 . 10 81 61 93 29 114 145 207 Gun 646 | 28 78 53 . . 11 12 . 37 . . . . 3 . 7 114 123 180 Cannon 799 | . . 156 46 44 92 11 21 122 11 . 10 81 57 92 21 . 8 27 Launcher 12 | . . . . 2 5 . 5 . . . . . . . . . . . Special 22 | . . . . . . . 1 4 . . . . 1 1 1 . 14 . Kinetic 745 | 28 78 189 . . . . 24 159 11 . 10 70 1 . 7 . . 168 Thermal 634 | . . 20 46 44 103 23 2 . . . . . 54 92 21 114 115 . Explosive 7 | . . . . 2 5 . . . . . . . . . . . . . Electromagnetic 35 | . . . . . . . . . . . . . . . . . 8 27 Entropic 36 | . . . . . . . . . . . . 11 5 . . . 8 12 Robot Hit Streak 54 | 4 8 9 11 6 12 10 6 9 6 . 10 8 16 15 4 15 23 54 Robot Miss Streak 15 | 4 4 15 2 5 4 3 10 8 1 . 4 3 3 7 4 4 6 5 Penetration Max 1 | . . . . . . . . 1 . . . . . . . . . 1 Secondary Targets 8 | . 2 . . . . . . . . . . . . . . 1 2 3 Max Gunslinging Chain 1 | . 1 . . . . . . . . . . . . . . 1 1 1 Shots Hit Robots 971 | 15 49 159 33 21 64 44 23 87 8 . 5 48 39 57 11 73 73 162 Core Hits 527 | 7 23 143 15 11 42 13 29 52 3 . 2 21 15 17 1 23 29 81 Critical Kills 33 | . . 1 1 . 1 . . 14 3 . . . 3 4 . . . 6 Critical Parts Destroyed 16 | . . 1 . . . . . 8 1 . . . . . . . . 6 Critical Strikes 70 | . . 2 1 . 1 . . 28 5 . 1 7 4 4 . 1 . 16 Burn 1 | . . . . . . . . . . . . . . . . 1 . . Meltdown 9 | . . . 1 . 1 . . . . . . . 3 4 . . . . Destroy 44 | . . 2 . . . . . 24 5 . . . . . . . . 13 Blast 8 | . . . . . . . . 4 . . 1 3 . . . . . . Sever 2 | . . . . . . . . . . . . . . . . . . 2 Detonate 1 | . . . . . . . . . . . . . . . . . . 1 Sunder 5 | . . . . . . . . . . . . 4 1 . . . . . Melee Attacks 62 | . . . . . 1 30 1 8 . . . . . . . . 1 21 Impact . | . . . . . . . . . . . . . . . . . . . Slashing 35 | . . . . . . 5 . 8 . . . . . . . . 1 21 Piercing . | . . . . . . . . . . . . . . . . . . . Sneak Attacks 41 | . . . . . 1 29 1 . . . . . . . . . . 10 Combat Hostiles . | . . . . . . . . . . . . . . . . . . . Follow-up Attacks . | . . . . . . . . . . . . . . . . . . . Damage Inflicted 29203 | 154 572 2936 749 805 2498 744 767 2139 151 . 197 2095 1527 2225 309 2378 2303 6654 Guns 11437 | 154 572 608 . . 248 229 . 173 . . . . 54 . 92 2378 2269 4660 Cannons 14281 | . . 2165 749 536 1368 225 341 1966 151 . 197 2095 1429 2225 217 . 34 583 Explosions 1769 | . . 153 . 269 856 . 426 . . . . . . . . . . 65 Melee 1636 | . . . . . . 290 . . . . . . . . . . . 1346 Ramming 80 | . . 10 . . 26 . . . . . . . 44 . . . . . Kinetic 12096 | 154 572 2530 . . . . 767 2139 151 . 197 1481 . . 92 . . 4013 Thermal 11539 | . . 268 749 536 1616 454 . . . . . . 1339 2225 217 2378 1692 65 Explosive 1125 | . . . . 269 856 . . . . . . . . . . . . . Electromagnetic 745 | . . 128 . . . . . . . . . . . . . . 34 583 Impact . | . . . . . . . . . . . . . . . . . . . Slashing 1636 | . . . . . . 290 . . . . . . . . . . . 1346 Piercing . | . . . . . . . . . . . . . . . . . . . Entropic 1982 | . . . . . . . . . . . . 614 144 . . . 577 647 Highest Corruption 31 | . . . . . 1 1 . 3 3 3 3 1 5 13 13 4 18 31 Average Corruption 5 | . . . . . 1 1 . 2 3 3 3 1 4 8 13 3 11 12 Corruption Purged 19 | . . . . . . . . . . . . . . . . . . 19 Corruption Blocked . | . . . . . . . . . . . . . . . . . . . Effects 286 | . . . . . . 13 . 24 28 23 1 6 12 61 35 21 35 27 Message Errors 74 | . . . . . . 6 . 6 4 5 . 3 5 13 8 5 10 9 Matter Fused 50 | . . . . . . 2 . 3 2 4 . 2 3 16 5 4 3 6 Heat Flow Errors 49 | . . . . . . . . 2 12 5 1 . . 10 6 2 5 6 Energy Discharges 37 | . . . . . . 1 . 7 2 7 . 1 1 4 4 4 3 3 Parts Rejected 1 | . . . . . . . . . . . . . . . . 1 . . Parts Fused 4 | . . . . . . . . . . . . . 1 2 1 . . . Data Loss (minor) 28 | . . . . . . 2 . 5 5 . . . 1 4 5 1 4 1 Data Loss (major) 17 | . . . . . . 1 . . . 1 . . . 7 1 2 5 . Misfires 9 | . . . . . . 1 . . 2 . . . . 3 . . 3 . Alerts 6 | . . . . . . . . . 1 1 . . . . . 2 1 1 Misdirections 3 | . . . . . . . . . . . . . . 1 1 . . 1 Weapon Failures 8 | . . . . . . . . 1 . . . . 1 1 4 . 1 . Overload Shots 4 | . . . . . . . . . . . . . . . . 3 1 . Overflow Damage 500 | . . 2 . 30 92 101 . 48 34 . . 22 7 28 . . . 136 Projectiles 185 | . . 2 . . 20 17 . 48 34 . . 22 7 28 . . . 7 Explosions 96 | . . . . 30 66 . . . . . . . . . . . . . Melee 219 | . . . . . 6 84 . . . . . . . . . . . 129 Knockbacks 98 | . . 54 . . . . 4 15 1 . 4 20 . . . . . . Impact . | . . . . . . . . . . . . . . . . . . . Kinetic 91 | . . 48 . . . . 4 15 1 . 4 19 . . . . . . Secondary 7 | . . 6 . . . . . . . . . 1 . . . . . . Self-Inflicted Damage 193 | . . . . . 45 . 59 . . . . . . . . . . 89 Shots 3 | . . . . . 1 . 1 . . . . . . . . . . 1 Rammed 4 | . . 1 . . . . . . . . . . 3 . . . . . Targets Rammed 5 | . . 1 . . 1 . . . . . . . 3 . . . . . Kicked 1 | . . . . . 1 . . . . . . . . . . . . . Crushed . | . . . . . . . . . . . . . . . . . . . Highest Temperature 357 | . 33 357 159 72 72 93 97 341 250 204 147 324 78 318 . 172 5 199 Average Temperature 64 | . 10 65 26 24 17 26 43 89 110 91 61 112 36 131 . 95 2 75 Received Heat Transfer 3667 | . 276 588 171 24 204 257 248 172 . . 114 110 73 299 . 105 240 786 Effects 3 | . . . . . . . . 1 . . . 2 . . . . . . Energy Bleed 1 | . . . . . . . . 1 . . . . . . . . . . Interference 2 | . . . . . . . . . . . . 2 . . . . . . Siege Activations 2 | . . . . . . . . . . . . . . . . . 2 . Total Turns 92 | . . . . . . . . . . . . . . . . . 92 . Longest Duration 64 | . . . . . . . . . . . . . . . . . 64 . Martial Activations . | . . . . . . . . . . . . . . . . . . . Shielding Activations . | . . . . . . . . . . . . . . . . . . . Robots Disrupted . | . . . . . . . . . . . . . . . . . . . Combat Hostiles . | . . . . . . . . . . . . . . . . . . . Robots Corrupted 5 | . . . . . 1 . . . . . . . . . . . . 4 Combat Hostiles 3 | . . . . . . . . . . . . . . . . . . 3 Parts Fried 12 | . . 1 . . 3 . . . . . . . . . . . 1 7 Impact Corruptions 2 | . . . . . 1 . . . . . . 1 . . . . . . Robots Melted 9 | . . . 1 . 1 . . . . . . . 3 4 . . . . Combat Hostiles 8 | . . . 1 . 1 . . . . . . . 3 3 . . . . Parts Melted 25 | . . 2 . . 3 . 2 . . . . . 6 5 . 4 3 . Heat Transferred 14398 | . . 494 1258 740 2548 815 . . . . . . 1130 2257 222 2849 2035 50 Parts Sabotaged 1 | . . . . . . . . . . . . . . . . 1 . . Parts Stolen . | . . . . . . . . . . . . . . . . . . . Parts Stripped . | . . . . . . . . . . . . . . . . . . . Power Chain Reactions 1 | . . 1 . . . . . . . . . . . . . . . . Alert | -11 -10 -9 -8 -7 -7 -7 -7 -5 -5 -5 -5 -4 -4 -4 -4 -3 -3 -3 ------- Run | Yrd Mat Mat Mat Fac Sto Rec Scr Fac Upp Upp War Pro Fac Ext Cet Res Qua Frg Maximum Alert Level 4 | . . 2 2 1 1 1 . 4 . . . . 4 4 3 3 2 2 Low Security (%) 33 | 100 100 35 . 98 40 99 . 22 . . . . 36 . . . . 3 Level 1 23 | . . 15 75 1 59 . . 35 . . . . 17 . . 8 57 45 Level 2 25 | . . 48 25 . . . . 4 . . . . 9 22 12 73 42 51 Level 3 11 | . . . . . . . . 11 . . . . 20 54 87 18 . . Level 4 5 | . . . . . . . . 26 . . . . 16 23 . . . . Level 5 . | . . . . . . . . . . . . . . . . . . . High Security . | . . . . . . . . . . . . . . . . . . . Max Security . | . . . . . . . . . . . . . . . . . . . Peak Influence 1324 | 10 88 688 431 205 379 206 . 1271 . . . . 1259 1324 859 824 519 658 Initial 729 | . . 10 277 151 35 102 . . . . . . . 606 729 397 459 225 Average 390 | 1 7 356 358 135 213 105 . 547 . . . . 471 902 768 543 373 416 Influence Increases 13055 | 25 233 1224 254 269 933 544 . 1818 6 . 494 452 1655 1680 376 1008 819 1265 Destroy 0b10 Robot/C 6580 | . 120 780 180 160 440 220 . 880 . . 320 340 620 700 160 540 460 660 Destroy 0b10 Robot/NC 605 | 25 35 75 5 5 40 45 . 65 5 . . . 45 55 10 35 20 140 Destroy Leader 1202 | . 38 212 50 52 136 . . 186 . . . 40 150 72 . 112 64 90 Allied During Kill 2116 | . . . . . 119 135 . 291 1 . 174 72 322 590 140 131 58 83 Trap Triggered on 0b10 20 | . . 10 . . . . . . . . . . . . . . 10 . Successful Hack 215 | . 23 38 . 12 26 22 . 8 . . . . . 32 . 27 27 . Select Force Hacks 120 | . . . . . . 120 . . . . . . . . . . . . Disable Machine 795 | . . 75 15 15 75 . . 120 . . . . 150 90 30 90 75 60 Anti-Garrison Action 150 | . . . . . . . . . . . . . . . . . . 150 Destroy Structure 1027 | . 2 4 4 25 82 2 . 208 . . . . 368 126 36 58 60 52 Partial Spotted 15 | . 15 . . . . . . . . . . . . . . . . . Lose Combat Pursuer 210 | . . 30 . . 15 . . 60 . . . . . 15 . 15 45 30 Influence Decreases 12570 | 25 208 591 579 524 747 792 16 559 1068 197 122 824 416 1615 1017 854 1236 1180 Entered New Map 3683 | . . 15 381 182 43 162 16 . 467 38 . 372 . 633 575 266 358 175 Time Decay 6987 | 25 208 546 198 342 494 510 . 519 601 159 32 392 326 562 362 478 638 595 Lost Part 680 | . . 30 . . 10 30 . 20 . . 10 20 50 40 20 10 70 370 Lost Ally 1070 | . . . . . 200 90 . 20 . . 80 40 40 380 60 100 20 40 Purge Threat 150 | . . . . . . . . . . . . . . . . . 150 . Squads Dispatched 64 | . 3 5 1 3 5 . . 11 . . . 1 10 3 . 9 5 8 Investigation 14 | . 1 3 1 . . . . 1 . . . . 2 . . 2 . 4 Extermination 18 | . . . . 2 2 . . 4 . . . . 2 . . 2 5 1 Reinforcement 20 | . 2 2 . 1 3 . . 2 . . . . 4 2 . 1 . 3 Assault 7 | . . . . . . . . 3 . . . 1 1 1 . 1 . . Garrison 5 | . . . . . . . . 1 . . . . 1 . . 3 . . Intercept . | . . . . . . . . . . . . . . . . . . . Searches Triggered . | . . . . . . . . . . . . . . . . . . . Construction Impeded 6 | . . . . . 1 . . 1 . . . . 1 2 . 1 . . Haulers Reinforced 3 | . . . . . 2 . . 1 . . . . . . . . . . Active Scanning Responses . | . . . . . . . . . . . . . . . . . . . Cargo Convoy Interrupts . | . . . . . . . . . . . . . . . . . . . Stealth | -11 -10 -9 -8 -7 -7 -7 -7 -5 -5 -5 -5 -4 -4 -4 -4 -3 -3 -3 --------- Run | Yrd Mat Mat Mat Fac Sto Rec Scr Fac Upp Upp War Pro Fac Ext Cet Res Qua Frg Distress Signals 34 | . 2 4 . . 4 . . 2 . . 1 . . 4 2 3 1 11 Communications Jammed . | . . . . . . . . . . . . . . . . . . . Distress Signals . | . . . . . . . . . . . . . . . . . . . Times Spotted 408 | . 10 56 11 14 23 12 30 41 . . 18 17 26 40 10 30 27 43 Peak Tracking Total 10 | . 3 5 4 4 6 5 5 5 . . 10 4 6 7 5 5 6 4 Tactical Retreats 11 | . . 2 . . 1 . . 2 . . . . . 1 . 1 2 2 ID Masks Used 1 | . . . . . . . . . . . . . . . . . . 1 IFF Responses 261 | . . . . . . . . . . . . . . . . . . 261 Traps | -11 -10 -9 -8 -7 -7 -7 -7 -5 -5 -5 -5 -4 -4 -4 -4 -3 -3 -3 ------- Run | Yrd Mat Mat Mat Fac Sto Rec Scr Fac Upp Upp War Pro Fac Ext Cet Res Qua Frg Traps Triggered 7 | . . 3 1 . . . . . . . . . 1 . . . . 2 Indirectly . | . . . . . . . . . . . . . . . . . . . Trap Hack Attempts 203 | . . 117 . . 86 . . . . . . . . . . . . . Triggered . | . . . . . . . . . . . . . . . . . . . Disarmed 7 | . . . . . 7 . . . . . . . . . . . . . Reprogrammed 13 | . . 10 . . 3 . . . . . . . . . . . . . Reused 2 | . . 1 . . . . . . . . . . . . . . 1 . Traps Extracted 3 | . . . . . 3 . . . . . . . . . . . . . Installed 1 | . . . . . . . . . . . . . . . . . 1 . Triggered 2 | . . 1 . . . . . . . . . . . . . . 1 . Most Traps Carried 5 | . . . . . 3 3 5 2 2 2 2 2 2 2 2 2 2 . Machines | -11 -10 -9 -8 -7 -7 -7 -7 -5 -5 -5 -5 -4 -4 -4 -4 -3 -3 -3 ---------- Run | Yrd Mat Mat Mat Fac Sto Rec Scr Fac Upp Upp War Pro Fac Ext Cet Res Qua Frg Machines Disabled 85 | . . 5 1 1 5 . 16 8 . . 1 2 10 7 3 6 6 14 Max in Single Turn 2 | . . 2 1 1 1 . 1 1 . . 1 1 1 1 1 1 1 2 Garrison Access 2 | . . . . . . . . 1 . . . . . . . . . 1 Machines Repaired . | . . . . . . . . . . . . . . . . . . . Machines Dismantled 1 | . . . . . 1 . . . . . . . . . . . . . Machines Sabotaged . | . . . . . . . . . . . . . . . . . . . Overloaded Fab Kills . | . . . . . . . . . . . . . . . . . . . Hacking | -11 -10 -9 -8 -7 -7 -7 -7 -5 -5 -5 -5 -4 -4 -4 -4 -3 -3 -3 --------- Run | Yrd Mat Mat Mat Fac Sto Rec Scr Fac Upp Upp War Pro Fac Ext Cet Res Qua Frg Machines Accessed 85 | . 8 13 2 1 9 9 2 7 1 . 1 . 5 7 . 8 6 6 Terminals 60 | . 6 9 2 . 8 5 . 5 . . . . 3 7 . 7 6 2 Fabricators . | . . . . . . . . . . . . . . . . . . . Repair Stations 2 | . . 1 . 1 . . . . . . . . . . . . . . Recycling Units 16 | . 2 2 . . 1 4 . 1 . . . . 2 . . 1 . 3 Scanalyzers 1 | . . 1 . . . . . . . . . . . . . . . . Garrison Access 2 | . . . . . . . . 1 . . . . . . . . . 1 Total Hacks 178 | . 18 30 4 3 20 21 5 12 1 . 1 . 10 12 . 16 13 12 Successful 88 | . 9 17 1 1 11 17 5 6 1 . 1 . 3 4 . 3 5 4 Failed 89 | . 9 12 3 2 9 4 . 6 . . . . 7 8 . 13 8 8 Catastrophic 24 | . 1 4 1 1 2 . . 2 . . . . . 1 . 7 4 1 Database Lockouts 1 | . . 1 . . . . . . . . . . . . . . . . Manual 97 | . 12 16 4 . 15 15 . 5 . . . 1 8 . . 11 . 10 Terminals 123 | . 11 24 4 . 17 11 . 8 . . . . 6 12 . 15 13 2 Fabricators . | . . . . . . . . . . . . . . . . . . . Repair Stations 5 | . . 2 . 3 . . . . . . . . . . . . . . Recycling Units 37 | . 7 2 . . 3 10 . 2 . . . . 4 . . 1 . 8 Scanalyzers 2 | . . 2 . . . . . . . . . . . . . . . . Garrison Access 4 | . . . . . . . . 2 . . . . . . . . . 2 Terminal Hacks 31 | . 2 5 . . 3 1 5 2 1 . 1 . . 4 . 1 5 1 Record 4 | . . . . . . . 4 . . . . . . . . . . . Prototype ID Bank 1 | . . . . . . . . . . . . . . . . . 1 . Open Door 6 | . . . . . 2 . . . 1 . 1 . . 2 . . . . Level Access Points 1 | . . . . . . . . . . . . . . . . . 1 . Branch Access Points 4 | . . 2 . . . . . 1 . . . . . . . 1 . . Terminal Index 1 | . . . . . . 1 . . . . . . . . . . . . Unreport Threat 1 | . . . . . . . . . . . . . . . . . 1 . Locate Traps 4 | . 2 1 . . . . . . . . . . . 1 . . . . Maintenance Status 1 | . . . . . . . . . . . . . . . . . 1 . Recall Extermination 1 | . . . . . . . . 1 . . . . . . . . . . Hauler Manifests 1 | . . 1 . . . . . . . . . . . . . . . . Registered Components 1 | . . . . . . . . . . . . . . . . . 1 . Registered Prototypes 1 | . . . . . . . . . . . . . . 1 . . . . Zone Layout 2 | . . 1 . . 1 . . . . . . . . . . . . . Proto ID Catalog 2 | . . . . . . . 1 . . . . . . . . . . 1 Fabricator Hacks . | . . . . . . . . . . . . . . . . . . . Repair Station Hacks 2 | . . 1 . 1 . . . . . . . . . . . . . . Scan Component 2 | . . 1 . 1 . . . . . . . . . . . . . . Recycling Unit Hacks 9 | . 1 1 . . 1 4 . 1 . . . . . . . 1 . . Retrieve Components 9 | . 1 1 . . 1 4 . 1 . . . . . . . 1 . . Scanalyzer 1 | . . 1 . . . . . . . . . . . . . . . . Retrieve Study 1 | . . 1 . . . . . . . . . . . . . . . . Garrison Access Hacks 1 | . . . . . . . . 1 . . . . . . . . . . Seal Access 1 | . . . . . . . . 1 . . . . . . . . . . Unauthorized Hacks 44 | . 6 9 1 . 7 12 . 2 . . . . 3 . . 1 . 3 Terminals 34 | . 6 9 1 . 7 8 . 1 . . . . 1 . . 1 . . Track 1 | . . . . . . . . 1 . . . . . . . . . . Assimilate 1 | . . 1 . . . . . . . . . . . . . . . . Botnet 8 | . . 2 . . 1 3 . . . . . . 1 . . 1 . . Operators 1 | . . . . . 1 . . . . . . . . . . . . . Skim 23 | . 6 6 1 . 5 5 . . . . . . . . . . . . Fabricators . | . . . . . . . . . . . . . . . . . . . Repair Stations . | . . . . . . . . . . . . . . . . . . . Recycling Units 10 | . . . . . . 4 . 1 . . . . 2 . . . . 3 Tunnel 4 | . . . . . . 4 . . . . . . . . . . . . Fedlink 5 | . . . . . . . . 1 . . . . 1 . . . . 3 Scrapoids 1 | . . . . . . . . . . . . . 1 . . . . . Scanalyzers . | . . . . . . . . . . . . . . . . . . . Garrison Access . | . . . . . . . . . . . . . . . . . . . Data Cores Recovered 3 | . . 1 . . . . . 1 . . . . . . . . 1 . Used . | . . . . . . . . . . . . . . . . . . . Hacking Detections 67 | . 8 11 2 . 8 4 . 7 . . . . 5 6 . 8 6 2 Full Trace Events 5 | . 1 1 . . . . . . . . . . . . . 2 . 1 Feedback Events . | . . . . . . . . . . . . . . . . . . . Feedback Blocked . | . . . . . . . . . . . . . . . . . . . Robot Schematics Acquired . | . . . . . . . . . . . . . . . . . . . Robots Built . | . . . . . . . . . . . . . . . . . . . Authchips . | . . . . . . . . . . . . . . . . . . . Time . | . . . . . . . . . . . . . . . . . . . Total Robot Build Rating . | . . . . . . . . . . . . . . . . . . . Part Schematics Acquired 1 | . . . . . . . . . . . . . . . . . . 1 Parts Built . | . . . . . . . . . . . . . . . . . . . Authchips . | . . . . . . . . . . . . . . . . . . . Time . | . . . . . . . . . . . . . . . . . . . Total Part Build Rating . | . . . . . . . . . . . . . . . . . . . Part Studies Acquired 1 | . . 1 . . . . . . . . . . . . . . . . Parts Repaired . | . . . . . . . . . . . . . . . . . . . Time . | . . . . . . . . . . . . . . . . . . . Parts Recycled . | . . . . . . . . . . . . . . . . . . . Recycled Matter . | . . . . . . . . . . . . . . . . . . . Retrieved Matter . | . . . . . . . . . . . . . . . . . . . Retrieved Components 40 | . . 10 . . 9 16 . 3 . . . . . . . 2 . . Parts Scanalyzed . | . . . . . . . . . . . . . . . . . . . Part Schematics Acquired . | . . . . . . . . . . . . . . . . . . . Parts Damaged . | . . . . . . . . . . . . . . . . . . . Bothacking | -11 -10 -9 -8 -7 -7 -7 -7 -5 -5 -5 -5 -4 -4 -4 -4 -3 -3 -3 ------------ Run | Yrd Mat Mat Mat Fac Sto Rec Scr Fac Upp Upp War Pro Fac Ext Cet Res Qua Frg Used RIF Installer . | . . . . . . . . . . . . . . . . . . . Robots Hacked 2 | . . . . . 1 . 1 . . . . . . . . . . . Non-combat 1 | . . . . . 1 . . . . . . . . . . . . . Combat 1 | . . . . . . . 1 . . . . . . . . . . . Robot Hacks Applied 2 | . . . . . 1 . 1 . . . . . . . . . . . parse_system 1 | . . . . . . . 1 . . . . . . . . . . . no_distress 1 | . . . . . 1 . . . . . . . . . . . . . Relay Couplers Released . | . . . . . . . . . . . . . . . . . . . Fabnet Peak Effective % . | . . . . . . . . . . . . . . . . . . . Robots Rewired 46 | . . . . . . 21 . . . . 5 1 . 19 . . . . Allies Hacked 3 | . . . . . . . . . . . . . 1 1 . 1 . . Hacks Repelled . | . . . . . . . . . . . . . . . . . . . Allies | -11 -10 -9 -8 -7 -7 -7 -7 -5 -5 -5 -5 -4 -4 -4 -4 -3 -3 -3 -------- Run | Yrd Mat Mat Mat Fac Sto Rec Scr Fac Upp Upp War Pro Fac Ext Cet Res Qua Frg Total Allies 84 | . . . . . 10 21 1 5 . . 6 2 6 29 1 . 3 . Largest Group 19 | . . . . . 10 19 16 4 3 2 8 4 8 13 9 7 3 3 Highest-Rated Group 705 | . . . . . 173 368 414 245 137 100 414 209 410 705 471 401 340 340 Highest-Rated Ally 159 | . . . . . 29 40 81 101 52 52 78 78 81 159 107 107 119 119 Total Orders 53 | . . . . . . . 10 7 2 . 12 6 4 . 2 . 10 . STAY 27 | . . . . . . . 6 4 1 . 5 3 2 . 1 . 5 . FOLLOW 25 | . . . . . . . 3 3 1 . 7 3 2 . 1 . 5 . GUARD 1 | . . . . . . . 1 . . . . . . . . . . . Ally Attacks 842 | . . . . . 61 73 64 133 . . 60 21 80 175 39 58 39 39 Total Damage 30245 | . . . . . 733 1054 1581 3493 . . 2557 1124 5052 5889 1159 3700 1756 2147 Kills 225 | . . . . . 4 12 17 32 . . 15 9 33 38 10 26 16 13 Allies Corrupted 4 | . . . . . . . . . . . . . . 2 . . 1 1 Allies Melted 16 | . . . . . . . 14 . . . . . . 1 . 1 . . Intel | -11 -10 -9 -8 -7 -7 -7 -7 -5 -5 -5 -5 -4 -4 -4 -4 -3 -3 -3 ------- Run | Yrd Mat Mat Mat Fac Sto Rec Scr Fac Upp Upp War Pro Fac Ext Cet Res Qua Frg Active Infowar (turns) 30411 | 35 550 3594 404 765 1445 1380 4568 2207 1937 1597 1531 1480 1210 1669 820 1220 2270 1729 Optics 17352 | . . . . . . . . 2207 1937 1597 1531 1480 1210 1669 820 1220 2270 1411 Sensors 1206 | . . . . . . . . . . . . . . . . . . 1206 Terrain 15773 | . . 1 . . . . . 2029 1937 1597 1515 1480 1210 1659 820 1220 1705 600 Seismic 585 | 35 550 . . . . . . . . . . . . . . . . . Machine Analysis 12156 | . . 3594 404 765 1445 1380 4568 . . . . . . . . . . . ID Mask 84 | . . . . . . . . . . . . . . . . . . 84 Robot Analysis Total . | . . . . . . . . . . . . . . . . . . . Derelict Logs Recovered 4 | . . . . . . . . . . 2 . 2 . . . . . . Drone Launches . | . . . . . . . . . . . . . . . . . . . Drone Recoveries . | . . . . . . . . . . . . . . . . . . . Exploration | -11 -10 -9 -8 -7 -7 -7 -7 -5 -5 -5 -5 -4 -4 -4 -4 -3 -3 -3 ------------- Run | Yrd Mat Mat Mat Fac Sto Rec Scr Fac Upp Upp War Pro Fac Ext Cet Res Qua Frg Turns Passed 32508 | 206 1940 3648 404 765 1445 1380 4881 2220 1937 1597 1531 1480 1210 1669 820 1220 2270 1885 Spaces Moved 15410 | 108 610 1251 249 536 503 873 3580 1133 435 400 787 532 604 661 383 623 1084 1058 Core 82 | 21 . . . . . . . . . . . . . . . . . 61 Treads 7945 | 87 610 1121 . . . . . 347 435 400 787 532 604 661 383 623 1084 271 Legs 6687 | . . 130 249 536 503 873 3580 99 . . . . . . . . . 717 Wheels 687 | . . . . . . . . 687 . . . . . . . . . . Hover 9 | . . . . . . . . . . . . . . . . . . 9 Flight . | . . . . . . . . . . . . . . . . . . . Fastest Speed 50 | 50 160 160 120 120 120 122 105 106 163 163 163 163 150 148 150 160 160 50 Average Speed 146 | 138 222 207 120 120 121 122 117 140 163 163 163 163 158 148 155 160 165 114 Slowest Speed 305 | 160 240 240 122 122 122 125 187 200 165 163 163 164 246 305 160 160 173 173 Overloaded Moves . | . . . . . . . . . . . . . . . . . . . Propulsion Burnouts . | . . . . . . . . . . . . . . . . . . . Robots Hopped . | . . . . . . . . . . . . . . . . . . . Potential Cave-ins 42 | . . . . . . . 4 . . . . 1 2 . . . 2 33 Cave-ins Triggered 5 | . . . . . . . . . . . . . . . . . . 5 Teleports 3 | . . . . . . . . . . . . . . . . . . 3 Exploration Rate (%) 55 | 6 86 87 25 15 72 99 88 27 65 58 89 55 15 81 60 20 73 36 Regions Visited 18 Branch Regions 11 Pre-discovered Areas 12 | . . . . . 3 7 . . . 1 . . 1 . . . . . Known Exits Taken 8 | . . 1 . 1 1 1 1 1 . . . 1 . . . 1 . . Unknown Exits Taken 10 | 1 1 . 1 . . . . . 1 1 1 . 1 1 1 . 1 . Scrap Searched 18 | . . . . . . . 9 . 3 3 . 3 . . . . . . Spaces Dug 166 | . . . . . 15 . 52 7 . . . 8 13 4 . 18 22 27 Terrain Destroyed 441 | . . . 3 25 81 2 119 35 2 . 4 34 21 27 7 21 32 28 Melee 3 | . . . . . . . . 2 . . . . . . . . . 1 Projectile 166 | . . . 3 . 28 2 . 32 2 . 4 34 12 25 7 5 11 1 AOE 170 | . . . . 25 53 . 92 . . . . . . . . . . . Terrain Rammed . | . . . . . . . . . . . . . . . . . . . Walls Destroyed . | . . . . . . . . . . . . . . . . . . . Machines Disabled . | . . . . . . . . . . . . . . . . . . . Actions | -11 -10 -9 -8 -7 -7 -7 -7 -5 -5 -5 -5 -4 -4 -4 -4 -3 -3 -3 --------- Run | Yrd Mat Mat Mat Fac Sto Rec Scr Fac Upp Upp War Pro Fac Ext Cet Res Qua Frg Total 24002 | 139 1125 2114 312 616 1207 1151 4258 1636 1652 1347 1030 1065 790 1266 580 755 1431 1528 Wait 6093 | . 444 515 16 1 504 182 536 274 1194 940 122 429 102 294 137 50 149 204 Move 15387 | 107 609 1250 248 535 502 872 3579 1132 434 399 786 531 603 660 382 622 1083 1053 Hop . | . . . . . . . . . . . . . . . . . . . Pick Up 374 | 11 21 44 10 16 9 10 45 43 5 2 18 7 8 34 11 8 33 39 Fast Attach 96 | . 1 3 . 1 3 2 1 11 1 2 8 3 14 3 5 6 12 20 Attach 134 | 7 2 15 2 3 . 4 10 15 2 . 4 3 3 10 3 3 11 37 Detach 21 | . . . . . . . 1 2 . . . . 2 2 . . 4 10 Swap 172 | . 2 20 4 16 22 6 8 16 5 . 9 1 5 7 6 14 17 14 Drop 379 | . 7 43 9 20 14 10 49 47 4 4 27 10 16 27 19 10 37 26 Fire 784 | 14 39 106 23 24 57 11 28 88 7 . 5 62 33 46 17 42 83 99 Melee 61 | . . . . . 1 29 1 8 . . . . . . . . 1 21 Ram . | . . . . . . . . . . . . . . . . . . . Kick 1 | . . . . . 1 . . . . . . . . . . . . . Crush 4 | . . 1 . . . . . . . . . . 3 . . . . . Escape Stasis 5 | . . . . . . . . . . . . . . . . . . 5 Rewire 279 | . . . . . . 25 . . . . 51 19 1 183 . . . . Trap 204 | . . 117 . . 86 . . . . . . . . . . . 1 . Miscellaneous 8 | . . . . . 8 . . . . . . . . . . . . . Route ------- -11/Scrapyard -10/Materials (discovered 3 exits: *Mat x2 / [*Min]) -9/Materials (discovered 5 exits: *Mat x3 / *Min x2) -8/Materials -7/Factory (discovered 3 exits: *Sto x2 / [*Low]) -7/Storage (discovered 2 exits: [*Fac] / *Rec) -7/Recycling (discovered 2 exits: *Fac / *Scr) -7/Scraptown (discovered 2 exits: *Fac x2) -5/Factory (discovered 4 exits: *Fac x2 / *Upp x2) -5/Upper Caves -5/Upper Caves (discovered 2 exits: Fac / *War) -5/Warlord -4/Proximity Caves -4/Factory -4/Extension (discovered 3 exits: *Res x2 / [*Cet]) -4/Cetus (discovered 2 exits: *Res / [*Arc]) -3/Research (discovered 2 exits: *Qua x2) -3/Quarantine (discovered 2 exits: [*Sec] / *Frg) -3/Protoforge History --------- Turn | Location | Event 5 | -11/Scrapyard | Discovered new exit (range 14) 207 | -11/Scrapyard | Entered Materials 303 | -10/Materials | Build established: Mutant 374 | -10/Materials | Discovered new exit (range 7) 781 | -10/Materials | Discovered new exit (range 8) 907 | -10/Materials | Derelicts attacked the area 1097 | -10/Materials | Discovered new exit (range 14) 1667 | -10/Materials | Learned Storage trap positions 1807 | -10/Materials | Learned location of 1 exit from Recycling 1860 | -10/Materials | Learned Storage interactive machine intel 1903 | -10/Materials | Learned location of 2 exits from Mines 2024 | -10/Materials | Learned location of 1 exit from Recycling 2125 | -10/Materials | Core integrity fell below 50% 2147 | -10/Materials | Entered another Materials area 2147 | -9/Materials | Evolved 2 slots: Propulsion x1, Utility x1 2324 | -9/Materials | Central database locked down 2504 | -9/Materials | Identified exit to Mines 3593 | -9/Materials | Build established: Scavenger-Mutant 4424 | -9/Materials | Discovered new exit (range 10) 4838 | -9/Materials | Learned Storage trap positions 4961 | -9/Materials | Identified exit to Materials 5005 | -9/Materials | Learned Storage emergency access door positions 5066 | -9/Materials | Learned Storage security intel 5152 | -9/Materials | Loaded intel: 17 trap records 5700 | -9/Materials | Discovered exit to Materials (range 16) 5743 | -9/Materials | Core integrity fell below 50% 5793 | -9/Materials | Build established: Mutant 5795 | -9/Materials | Entered another Materials area 5795 | -8/Materials | Evolved 2 slots: Propulsion x1, Utility x1 6115 | -8/Materials | Discovered new exit (range 13) 6199 | -8/Materials | Entered Factory 6199 | -7/Factory | Evolved 2 slots: Propulsion x1, Utility x1 6200 | -7/Factory | Identified exit to Storage 6734 | -7/Factory | Discovered new exit (range 12) 6964 | -7/Factory | Entered Storage 6965 | -7/Storage | Identified exit to Recycling 6966 | -7/Storage | Loaded intel: 23 trap records 6968 | -7/Storage | Loaded intel: 17 interactive machine locations 7205 | -7/Storage | Assisted by bots powering up and referring to "LRC-V3" 7228 | -7/Storage | Used back door to open Recycling access 7365 | -7/Storage | Learned location of Armory (-4) 7497 | -7/Storage | Lost 4 allies 7504 | -7/Storage | Build established: Commander-Mutant 7538 | -7/Storage | Lost 3 allies 7569 | -7/Storage | Discovered new exit (range 12) 7579 | -7/Storage | Lost 3 allies 7605 | -7/Storage | Destroyed 8 combat bots 7805 | -7/Storage | Build established: Mutant 7989 | -7/Storage | Learned Factory trap positions 8142 | -7/Storage | Learned location of Upper Caves (-5) 8252 | -7/Storage | Learned 4 Lower Caves zone layouts 8381 | -7/Storage | Learned location of 1 exit from Hub_04(d) 8409 | -7/Storage | Entered Recycling 8410 | -7/Recycling | Identified exit to Scraptown 8410 | -7/Recycling | Identified exit to Factory 8597 | -7/Recycling | Lost 3 parts (1p1n1u) 8795 | -7/Recycling | Lost 4 allies 8802 | -7/Recycling | Build established: Commander-Mutant 9307 | -7/Recycling | Learned Extension stockpile data 9363 | -7/Recycling | Learned Factory stockpile data 9411 | -7/Recycling | Learned 4 Factory zone layouts 9450 | -7/Recycling | Learned location of Zion (-7) 9480 | -7/Recycling | Learned location of 1 exit from Lower Caves 9536 | -7/Recycling | Learned location of 1 exit from Proximity Caves 9666 | -7/Recycling | Scanned before Scraplab entrance 9725 | -7/Recycling | Entered Scraplab 9789 | -7/Recycling | Entered Scraptown 9789 | -7/Scraptown | Accompanied by 15 allies 9789 | -7/Scraptown | System corruption cleaned by C-Scrubber 9856 | -7/Scraptown | Heard Great Nut preacher, LISTEN AND RECITE! 9859 | -7/Scraptown | Visited SPCMW 9881 | -7/Scraptown | Visited Cave Peace 9888 | -7/Scraptown | Visited Cyclists 9927 | -7/Scraptown | Visited Fellowship of the Rings 9942 | -7/Scraptown | Visited Bundlers 10018 | -7/Scraptown | Visited UFD Registry 10018 | -7/Scraptown | Registered with UFD as "Gaussforce" 10062 | -7/Scraptown | Visited Curators Association 10107 | -7/Scraptown | Visited A0-MCA Data Center 10122 | -7/Scraptown | Visited Botcube Research 10138 | -7/Scraptown | Visited Scrap Suit Storage 10156 | -7/Scraptown | Visited Abandonware Association 10172 | -7/Scraptown | Learned abandonware demo "SHUTEYE.EXE" 10193 | -7/Scraptown | Visited Infowarlord's Domain 10232 | -7/Scraptown | Visited Science Guys 10281 | -7/Scraptown | Visited Chapter 10 10647 | -7/Scraptown | Discovered exit to Factory (range 13) 10850 | -7/Scraptown | Found Lrg. Botcube 11082 | -7/Scraptown | Visited LU-1G1's Boring Crew 12367 | -7/Scraptown | Given an A rating by A0-MCA 12369 | -7/Scraptown | Found A0-MCA's Component Scanner 12762 | -7/Scraptown | Lrg. Botcube activated 12796 | -7/Scraptown | Lrg. Botcube completed mutation into legged form, armed with 2 guns, 2 cannons. 12798 | -7/Scraptown | Attached CPS modules to Large Mutated Botcube. 13723 | -7/Scraptown | Found Exp. Terrain Scanner 13784 | -7/Scraptown | Met Optimus 13784 | -7/Scraptown | Accepted into 0bPrime 14184 | -7/Scraptown | Civil war broke out across Scraptown 14190 | -7/Scraptown | Found Prototype Special Weapon 14191 | -7/Scraptown | Identified LU-1G1's Laser Shovel 14242 | -7/Scraptown | Found PL-3XN's Ring of Power 14268 | -7/Scraptown | Found DM-GVY's Chainsaw 14269 | -7/Scraptown | Lost 8 allies 14302 | -7/Scraptown | Found Deploy-a-Sentry 14312 | -7/Scraptown | Found MA-1KR's Cyclogen 14329 | -7/Scraptown | Found Prototype Processor 14344 | -7/Scraptown | Lost 6 allies 14349 | -7/Scraptown | Found Lrg. Botcube 14351 | -7/Scraptown | Found Botcube 14353 | -7/Scraptown | Identified Expert System 14355 | -7/Scraptown | Found Lrg. Botcube 14359 | -7/Scraptown | Found Lrg. Botcube 14365 | -7/Scraptown | Found Botcube 14449 | -7/Scraptown | Lost 3 allies 14472 | -7/Scraptown | Found Thermal Lance 14491 | -7/Scraptown | Found ID Mask 14592 | -7/Scraptown | Lost 4 allies 14644 | -7/Scraptown | Discovered exit to Factory (range 8) 14669 | -7/Scraptown | Lost 9 allies 14670 | -7/Scraptown | Entered Factory 14670 | -5/Factory | Evolved 4 slots: Power x1, Propulsion x1, Utility x2 14671 | -5/Factory | Identified exit to Upper Caves 14673 | -5/Factory | Loaded intel: 84 trap records 14704 | -5/Factory | Build established: Mutant 14723 | -5/Factory | Discovered new exit (range 8) 14962 | -5/Factory | Botcube activated 14974 | -5/Factory | Botcube completed mutation into legged form, armed with 1 cannon. 15118 | -5/Factory | Attached CPS modules to Mutated Botcube. 15145 | -5/Factory | Garrison activated, responded to threat 15163 | -5/Factory | Botcube activated 15175 | -5/Factory | Botcube completed mutation into treaded form, armed with 2 guns. 15234 | -5/Factory | Discovered new exit (range 30) 15280 | -5/Factory | Attached CPS modules to *Y-6.4. 15388 | -5/Factory | Build established: Skirmisher 15489 | -5/Factory | Lrg. Botcube activated 15521 | -5/Factory | Lrg. Botcube completed mutation into hovering form, armed with 2 guns. 15524 | -5/Factory | Attached CPS modules to Large Mutated Botcube. 15536 | -5/Factory | Loaded intel: 8 recycling unit locations 15566 | -5/Factory | Murdered *cube2 15566 | -5/Factory | Destroyed *cube2 15570 | -5/Factory | Found Botcube 15606 | -5/Factory | Botcube activated 15618 | -5/Factory | Botcube completed mutation into legged form, armed with 2 guns. 16148 | -5/Factory | Lrg. Botcube activated 16164 | -5/Factory | Lrg. Botcube completed mutation into flying form, armed with 3 guns. 16168 | -5/Factory | Attached CPS modules to Large Mutated Botcube. 16170 | -5/Factory | First assault squad dispatched 16727 | -5/Factory | Found Lrg. Botcube 16890 | -5/Factory | Entered Upper Caves 16890 | -5/Upper Caves | Accompanied by 3 allies 18204 | -5/Upper Caves | Murdered *Y-6.4 18204 | -5/Upper Caves | Destroyed *Y-6.4 18210 | -5/Upper Caves | Found Botcube 18279 | -5/Upper Caves | Discovered new exit (range 19) 18827 | -5/Upper Caves | Entered another Upper Caves area 18827 | -5/Upper Caves | Accompanied by 2 allies 18830 | -5/Upper Caves | Discovered new exit (range 26) 19794 | -5/Upper Caves | Discovered new exit (range 16) 19924 | -5/Upper Caves | Encountered a Warlord checkpoint 20250 | -5/Upper Caves | Learned Factory stockpile data 20335 | -5/Upper Caves | Spotted B-75 Beast 20424 | -5/Upper Caves | Entered Warlord 20424 | -5/Warlord | Accompanied by 2 allies 20468 | -5/Warlord | Discovered new exit (range 24) 20478 | -5/Warlord | System corruption cleaned by Quarantine Array 21036 | -5/Warlord | Found Prototype Reactor 21036 | -5/Warlord | Identified Vortex Chain Reactor 21043 | -5/Warlord | Found Prototype Processor 21051 | -5/Warlord | Found Prototype Device 21052 | -5/Warlord | Identified System Purifier 21076 | -5/Warlord | Build established: Commander-Skirmisher 21215 | -5/Warlord | Visited the Vortex Lab 21227 | -5/Warlord | Warlord's base attacked by MAIN.C 21233 | -5/Warlord | Found Prototype Energy Gun 21233 | -5/Warlord | Identified Vortex Shotgun 21245 | -5/Warlord | Found Prototype Energy Cannon 21245 | -5/Warlord | Identified Vortex Cannon 21254 | -5/Warlord | Found Prototype Energy Gun 21254 | -5/Warlord | Identified Vortex Rifle 21281 | -5/Warlord | Found Vortex Rifle 21299 | -5/Warlord | Botcube activated 21315 | -5/Warlord | Botcube completed mutation into legged form, armed with 2 guns. 21471 | -5/Warlord | Rebuked by Warlord 21573 | -5/Warlord | Found Vortex Shotgun 21577 | -5/Warlord | Warlord forces counterattacked 21584 | -5/Warlord | Found Vortex Cannon 21819 | -5/Warlord | Spotted Executioner 21819 | -5/Warlord | Allies destroyed Executioner 21847 | -5/Warlord | Spotted Striker 21870 | -5/Warlord | Allies destroyed Striker 21884 | -5/Warlord | Found Lrg. Botcube 21902 | -5/Warlord | Warlord base infiltrated, sounded retreat 21905 | -5/Warlord | Lost 12 allies 21955 | -5/Warlord | Entered Proximity Caves 21955 | -4/Proximity Caves | Accompanied by 4 allies 21956 | -4/Proximity Caves | Identified exit to Factory 22173 | -4/Proximity Caves | Learned 12 Research zone layouts 22199 | -4/Proximity Caves | Learned location of 1 exit from Upper Caves 22335 | -4/Proximity Caves | Attracted the attention of an 0b10 checkpoint 22449 | -4/Proximity Caves | Build established: Skirmisher 22543 | -4/Proximity Caves | Attracted the attention of an 0b10 outpost 22748 | -4/Proximity Caves | Murdered *Alpha 1 22748 | -4/Proximity Caves | Destroyed *Alpha 1 23044 | -4/Proximity Caves | Botcube activated 23056 | -4/Proximity Caves | Botcube completed mutation into legged form, armed with 1 gun, 1 cannon. 23394 | -4/Proximity Caves | Acquired the password to a Derelict Tinkerer's latest research 23407 | -4/Proximity Caves | Found Prototype Special Weapon 23435 | -4/Proximity Caves | Entered Factory 23435 | -4/Factory | Accompanied by 2 allies 23435 | -4/Factory | Evolved 2 slots: Utility x2 23769 | -4/Factory | Lrg. Botcube activated 23785 | -4/Factory | Lrg. Botcube completed mutation into treaded form, armed with 4 guns. 23869 | -4/Factory | Attached CPS modules to *Warcube Wireframe. 24160 | -4/Factory | Scrapoids reinforcements arrived? 24185 | -4/Factory | First assault squad dispatched 24261 | -4/Factory | Lost 5 allies 24415 | -4/Factory | Garrison activated, responded to threat 24533 | -4/Factory | Discovered new exit (range 8) 24579 | -4/Factory | Loaded intel: 7 recycling unit locations 24579 | -4/Factory | Learned location of Protoforge (-3) 24645 | -4/Factory | Entered Extension 24645 | -4/Extension | Accompanied by 1 ally 24705 | -4/Extension | Rescued a captive Derelict 24734 | -4/Extension | Rescued A7 24767 | -4/Extension | Rescued a captive Derelict 24769 | -4/Extension | Rescued a captive Derelict 24862 | -4/Extension | Allies destroyed *Warcube Wireframe 24913 | -4/Extension | Found Lrg. Botcube 25119 | -4/Extension | Lrg. Botcube activated 25255 | -4/Extension | Rescued a captive Derelict 25259 | -4/Extension | Rescued a captive Derelict 25284 | -4/Extension | Spotted B-86 Titan 25326 | -4/Extension | Discovered new exit (range 24) 25333 | -4/Extension | Rescued a captive Derelict 25344 | -4/Extension | Spotted B-86 Titan 25345 | -4/Extension | Lost 4 allies 25353 | -4/Extension | Allies destroyed B-86 Titan 25368 | -4/Extension | Allies destroyed B-86 Titan 25388 | -4/Extension | Lost 3 allies 25420 | -4/Extension | Disrupted transfer network 25437 | -4/Extension | Lrg. Botcube activated 25457 | -4/Extension | Lrg. Botcube completed mutation into treaded form, armed with 1 gun, 2 cannons, 1 melee weapon. 25460 | -4/Extension | Attached CPS modules to *Warcube Wireframe (Lesser). 25528 | -4/Extension | Extracted ID and sensor layout for unrecognized location from A7's data core 25538 | -4/Extension | Lost 5 allies 25539 | -4/Extension | System corruption reached 10% 25546 | -4/Extension | Found Lrg. Botcube 25577 | -4/Extension | Lrg. Botcube activated 25605 | -4/Extension | Lrg. Botcube completed mutation into legged form, armed with 4 guns. 25823 | -4/Extension | Build established: Scavenger-Skirmisher 26114 | -4/Extension | Discovered new exit (range 21) 26137 | -4/Extension | Discovered new exit (range 25) 26145 | -4/Extension | First assault squad dispatched 26218 | -4/Extension | Lost 4 allies 26314 | -4/Extension | Entered Cetus 26314 | -4/Cetus | Accompanied by 9 allies 26335 | -4/Cetus | Spotted Cetus Guard 26335 | -4/Cetus | Spotted Cetus Guard 26335 | -4/Cetus | Spotted Cetus Guard 26335 | -4/Cetus | Spotted Cetus Guard 26340 | -4/Cetus | Build established: Commander-Skirmisher 26341 | -4/Cetus | Allies destroyed Cetus Guard 26349 | -4/Cetus | Allies destroyed Cetus Guard 26350 | -4/Cetus | Allies destroyed Cetus Guard 26356 | -4/Cetus | Allies destroyed Cetus Guard 26429 | -4/Cetus | Cetus Manufacturing Module disabled 26463 | -4/Cetus | Discovered new exit (range 21) 26606 | -4/Cetus | Spotted Cetus Guard 26606 | -4/Cetus | Spotted Cetus Guard 26609 | -4/Cetus | Spotted Cetus Guard 26610 | -4/Cetus | Spotted Cetus Guard 26619 | -4/Cetus | Allies destroyed Cetus Guard 26620 | -4/Cetus | Allies destroyed Cetus Guard 26631 | -4/Cetus | Allies destroyed Cetus Guard 26634 | -4/Cetus | Allies destroyed Cetus Guard 26636 | -4/Cetus | Discovered new exit (range 21) 26645 | -4/Cetus | Build established: Scavenger-Skirmisher 26656 | -4/Cetus | Met Revision 17 26916 | -4/Cetus | Found Lrg. Botcube 27002 | -4/Cetus | Lrg. Botcube activated 27024 | -4/Cetus | Lrg. Botcube completed mutation into treaded form, armed with 4 guns. 27064 | -4/Cetus | Security sweep announced 27130 | -4/Cetus | Attached CPS modules to *Cetus Assault. 27134 | -4/Cetus | Entered Research 27134 | -3/Research | Accompanied by 7 allies 27134 | -3/Research | Evolved 2 slots: Utility x1, Weapon x1 27218 | -3/Research | Garrison activated, responded to threat 27236 | -3/Research | Found Lrg. Botcube 27298 | -3/Research | Lost 6 allies 27414 | -3/Research | Build established: Scavenger-Tank 27581 | -3/Research | Discovered new exit (range 6) 27884 | -3/Research | First assault squad dispatched 28163 | -3/Research | Identified exit to Quarantine 28342 | -3/Research | Spotted B-90 Cyclops 28354 | -3/Research | Entered Quarantine 28354 | -3/Quarantine | Accompanied by 1 ally 28474 | -3/Quarantine | Cryocooling Duct disabled 28489 | -3/Quarantine | Ambient heat levels rising (+20) 28489 | -3/Quarantine | Non-combat units ordered to evacuate 28521 | -3/Quarantine | Identified exit to Research 28790 | -3/Quarantine | System corruption reached 10% 29034 | -3/Quarantine | Lrg. Botcube activated 29064 | -3/Quarantine | Lrg. Botcube completed mutation into legged form, armed with 4 guns. 29085 | -3/Quarantine | Found Lrg. Botcube 29144 | -3/Quarantine | Build established: Scavenger-Skirmisher 29242 | -3/Quarantine | Found Alien Artifact 29349 | -3/Quarantine | Found Alien Slashing Weapon 29349 | -3/Quarantine | Identified Sigix Broadsword 29385 | -3/Quarantine | Found Alien Artifact 29385 | -3/Quarantine | Identified Core Reset Matrix 29385 | -3/Quarantine | Identified Terrabomb 29385 | -3/Quarantine | Used Core Reset Matrix 29389 | -3/Quarantine | Detected hypermatrix surge 29389 | -3/Quarantine | Sensed 8 artifacts in vicinity 29423 | -3/Quarantine | Identified Molecular Deconstructor 29637 | -3/Quarantine | Lrg. Botcube activated 29653 | -3/Quarantine | Build established: Scavenger-Assassin 29667 | -3/Quarantine | Lrg. Botcube completed mutation into hovering form, armed with 3 guns. 29778 | -3/Quarantine | Found Dimensional Node Initializer 29790 | -3/Quarantine | Found Transdimensional Reconstructor 29795 | -3/Quarantine | Found Hpw. Transdimensional Reconstructor 29798 | -3/Quarantine | Found Transdimensional Reconstructor 29801 | -3/Quarantine | Found Transdimensional Reconstructor 29814 | -3/Quarantine | Found Dimensional Node Initializer 29814 | -3/Quarantine | Initialized slip node 30062 | -3/Quarantine | Spotted Fortress 30132 | -3/Quarantine | Destroyed Fortress 30160 | -3/Quarantine | Lost 3 parts (1n1u1w) 30404 | -3/Quarantine | Build established: Scavenger-Mutant 30440 | -3/Quarantine | Lrg. Botcube activated 30474 | -3/Quarantine | Lrg. Botcube completed mutation into hovering form, armed with 4 guns. 30607 | -3/Quarantine | Discovered new exit (range 6) 30607 | -3/Quarantine | Discovered new exit (range 6) 30624 | -3/Quarantine | Entered Protoforge 30624 | -3/Protoforge | Accompanied by 3 allies 30625 | -3/Protoforge | Sensed 2 artifacts in vicinity 30646 | -3/Protoforge | Superfortress began startup sequence 30790 | -3/Protoforge | Spotted Hotshot 30808 | -3/Protoforge | Spotted Hotshot 30808 | -3/Protoforge | Spotted Hotshot 30818 | -3/Protoforge | Allies destroyed Hotshot 30826 | -3/Protoforge | Allies destroyed Hotshot 30828 | -3/Protoforge | Destroyed Hotshot 30885 | -3/Protoforge | Murdered *H-777 30885 | -3/Protoforge | Destroyed *H-777 30899 | -3/Protoforge | Build established: Scavenger-Assassin 30978 | -3/Protoforge | Spotted Hotshot 30979 | -3/Protoforge | Spotted Hotshot 30981 | -3/Protoforge | Spotted Hotshot 30984 | -3/Protoforge | Allies destroyed Hotshot 30994 | -3/Protoforge | Found Lrg. Botcube 31003 | -3/Protoforge | Destroyed Hotshot 31049 | -3/Protoforge | Lost 3 parts (1p1u1w) 31052 | -3/Protoforge | Destroyed Hotshot 31190 | -3/Protoforge | Spotted EXE-6 31190 | -3/Protoforge | Spotted EXE-6 31217 | -3/Protoforge | Destroyed EXE-6 31225 | -3/Protoforge | Destroyed EXE-6 31234 | -3/Protoforge | Spotted Decapitator 31247 | -3/Protoforge | Spotted Decapitator 31256 | -3/Protoforge | Destroyed Decapitator 31256 | -3/Protoforge | Destroyed Decapitator 31283 | -3/Protoforge | Lost 7 parts (1p2n3u1w) 31347 | -3/Protoforge | UFD initiated attack on Protoforge (Readiness: Minimal) 31347 | -3/Protoforge | Loaded intel: 3 recycling unit locations 31388 | -3/Protoforge | Initialized slip node 31433 | -3/Protoforge | Optimus greeted in Protoforge 31437 | -3/Protoforge | Found Cep. XC Strikerail 31440 | -3/Protoforge | Found Exp. Core Analyzer 31454 | -3/Protoforge | Found Cep. XC Strikerail 31470 | -3/Protoforge | Found Cep. XC Strikerail 31472 | -3/Protoforge | Found Cep. XC Strikerail 31477 | -3/Protoforge | Found Exp. Kinecellerator 31479 | -3/Protoforge | Found Exp. Core Analyzer 31545 | -3/Protoforge | Spotted Hotshot 31547 | -3/Protoforge | Destroyed Hotshot 31552 | -3/Protoforge | Spotted Hotshot 31552 | -3/Protoforge | Spotted Striker 31553 | -3/Protoforge | Spotted Hotshot 31554 | -3/Protoforge | Spotted Striker 31554 | -3/Protoforge | Found Exp. System Purifier 31569 | -3/Protoforge | Destroyed Striker 31576 | -3/Protoforge | Destroyed Striker 31579 | -3/Protoforge | Destroyed Hotshot 31639 | -3/Protoforge | ID Mask engaged 31640 | -3/Protoforge | Spotted Executioner 31641 | -3/Protoforge | Spotted Striker 31642 | -3/Protoforge | Spotted Immortal 31643 | -3/Protoforge | Spotted Immortal 31643 | -3/Protoforge | Spotted Immortal 31668 | -3/Protoforge | Spotted V398-o 31673 | -3/Protoforge | UFD reported confirmed Drillbomb installation 31701 | -3/Protoforge | Spotted Hotshot 31704 | -3/Protoforge | Spotted Hotshot 31706 | -3/Protoforge | Spotted Hotshot 31707 | -3/Protoforge | Spotted Hotshot 31723 | -3/Protoforge | ID Mask no longer valid 31753 | -3/Protoforge | Found Crosscalibrator 31779 | -3/Protoforge | Spotted Immortal 31779 | -3/Protoforge | Spotted Immortal 31808 | -3/Protoforge | Found Cep. Tactical Fusion Warhead 31810 | -3/Protoforge | Found Faulty Cep. EMP Blanket Launcher 31814 | -3/Protoforge | Spotted V588-x 31816 | -3/Protoforge | Found Cep. Rapid Grenade Launcher 31817 | -3/Protoforge | Spotted V357-w 31817 | -3/Protoforge | Spotted V119-n 31818 | -3/Protoforge | Found Cep. Arcsight Missile Launcher 31856 | -3/Protoforge | Build established: Scavenger-Skirmisher 31860 | -3/Protoforge | Warped through subspace to slip node 31861 | -3/Protoforge | Core integrity fell below 50% 31890 | -3/Protoforge | Destroyed V588-x 31890 | -3/Protoforge | Lost 3 parts (2p1u) 31915 | -3/Protoforge | Spotted Striker 31977 | -3/Protoforge | Spotted Striker 31979 | -3/Protoforge | Warped through subspace to slip node 32016 | -3/Protoforge | Spotted Executioner 32042 | -3/Protoforge | Lost 4 allies 32111 | -3/Protoforge | Lost 4 allies 32121 | -3/Protoforge | P-80 Master assimilated allied AB-U67(h) 32147 | -3/Protoforge | Found Exp. Targeting Computer 32192 | -3/Protoforge | Spotted Striker 32193 | -3/Protoforge | Spotted Striker 32235 | -3/Protoforge | Forge Plexus network access discovered 32243 | -3/Protoforge | Destroyed 25 combat bots 32297 | -3/Protoforge | Found Cep. Weapon Articulator 32304 | -3/Protoforge | Found Cep. Concussive Dispersal Blaster 32313 | -3/Protoforge | Additional patrols dispatched to research labs 32314 | -3/Protoforge | Crushed by falling debris 32335 | -3/Protoforge | Crushed by falling debris 32344 | -3/Protoforge | Crushed by falling debris 32348 | -3/Protoforge | Crushed by falling debris 32353 | -3/Protoforge | Crushed by falling debris 32354 | -3/Protoforge | Core integrity fell below 20% 32354 | -3/Protoforge | System corruption reached 30% 32373 | -3/Protoforge | Found Imp. Powered Armor 32380 | -3/Protoforge | Found Cep. Antimissile System 32382 | -3/Protoforge | Found Cep. Zero-point Core 32384 | -3/Protoforge | Lost 17 parts (1p1n9u6w) 32385 | -3/Protoforge | Found Cep. XC Strikerail 32388 | -3/Protoforge | Found Cep. XC Strikerail 32395 | -3/Protoforge | Spotted Decapitator 32396 | -3/Protoforge | Spotted Decapitator 32413 | -3/Protoforge | Destroyed Decapitator 32425 | -3/Protoforge | Warped through subspace to slip node 32494 | -3/Protoforge | Lost 4 allies 32504 | -3/Protoforge | Attacked by UFD forces 32509 | -3/Protoforge | Destroyed by 03F62-D with Overtuned Quantum Rifle Last Messages --------------- 32499_ Lugger 600 collects UFD Drillbomb. 32500_ Sneak attack on 03F60-D. 32500_ 03F60-D destroyed. 32501_ 03F59-D cannibalizes Mak. Microdissipator Network to repair Mak. Coolant Network. 32502_ 03F59-D cannibalizes Scrap Suit to repair Mak. Coolant Network. 32503_ Sneak attack on PS-FON(p). 32503_ Destroyed Lgt. Deuterium Engine. 32503_ PS-FON(p) destroyed. 32504_ 03F59-D cannibalizes Heat Sink to repair Mak. Coolant Network. 32504_ 0bP_NET: Gaussforce betrays us! Get the scumbolt! 32504_ Penetrated by Slug. 32504_ Slug penetrates Forge Pylon. 32506_ Penetrated by Slug. 32506_ Slug penetrates Reinforced Barrier. 32507_ N-04 Retriever collects Lgt. Nuclear Core. 32507_ Penetrated by Slug. 32507_ Bolt Gun destroyed. 32507_ Slug penetrates Reinforced Barrier. 32509_ Machine disabled. Map ----- +----------------------------------------------------+ | """""""""""""""""" % % " ##?????????????? | | """"""""""""""""""% % % % " #?????????????? | | """""""""""""""""" " % " "" #?????????????? | | """""""""""""""""" " % ""%%% ##?????????????? | | """"""""""""""""" %%"% " %%" #??????????????? | | """""""""""""""""%""" "%% % #??????????????? | | """"""""""""""""" % "" %%""" #??????????????? | | """"""""""""""""% %" " % #??????????????? | | """""""""""""""% %%%" %" #??????????????? | | """""""""""""" % %" % """" #??????????????? | | """"""""""""" "% " " """ #??????????????? | | """""""""""" " % "% "%% #??????????????? | | """"""""""" ""!% % " "% #??????????????? | | """"""""[ "" " % #??????????????? | | %%% %/ [=""%"= """ n""" #??????????????? | | !! % % "" "" %""" #??????????????? | | =[*[! " %& " * " " """" ###????????????? | | !=!! !"" """" " ""Ass "% <&#????????????? | | " ! "" "%"""%""" " !!= <&##???????????? | | " %%[ %%*s && #???????????? | | " !! """ " " !"""" &&##???????????? | | " %=*" "" "" " && #???????????? | | " != """ " "" "" "" &&# #??????????? | | " """ " " " # # #?????????? | | " """" " ## ## #????????? | | @ " #?##?##????????? | | "" """" """ #??????????????? | | "" "" #??????????????? | | """""""""" " " " """" #??????????????? | | #####################+++###########??????????????? | | ??"?????????????#"" [ ""#????????????????????? | | ??????##??????###" "###??????????????????? | | ????#?#???????#"" ""#??????????????????? | | #??##??#??????#"" ""#??????????????????? | | ###?#??#??????#"" ""#??????????????????? | | ?#????????????#"Y Y"#??????????????????? | | ??????????????#"" ""#??????????????????? | | ##????#???????#"" ""#??????????????????? | | #?????????????#"" ![""#??????????????????? | | #?????????????###" "###??????????????????? | | ????????????????#"" ""#????????????????????? | | ?#??????????????###"""Y"""###????????????????????? | | ??????????????????#"""""""#??????????????????????? | | ??????????????????#########??????????????????????? | | ?????????????????????????????????????????????????? | | ##???????????????????????????????????????????????? | | ?????????????????????????????????????????????????? | | ?????????????????????????????????????????????????? | | #????????????????????????????????????????????????? | | ?????????????????????????????????????????????????? | +----------------------------------------------------+ Best States ------------- Heat Dissipation 150 Energy Generation 55 Energy Capacity 1400 Matter Stores 300 Matter Capacity 300 Sight Range 23 Robot Scan Range 16 Terrain Scan Range 30 Terrain Scan Density 210 Base Temperature (-) 200 Armor Coverage 600 Weapon Shielding 90 Point Defense Rating 480 Weapon Cycling 20 Evasion (%) 63 Targeting Accuracy 42 Core Analysis 12 Recoil Reduction 6 Kinecelleration 66 Salvage Targeting 3 Offensive Hacking 14 Defensive Hacking 22 Authchip Count 4 Trap Extractor Capacity 6 Item Schematics ----------------- Particle Accelerator | -3/Protoforge | Archive Robot Schematics ------------------ None Fabricated ------------ Nothing Repaired ---------- Nothing Studied --------- None Alien Tech Used ----------------- Sigix Broadsword Core Reset Matrix Dimensional Node Initializer Transdimensional Reconstructor Achievements -------------- Equal Opportunity Bot Challenges ------------ None Game ------ Seed RagnarokArcMatterbank Manual? 0 Play Time 04:38:38 Cumulative 677.6 hours Start 2026.01.30 @ 09:36:01 End 2026.02.04 @ 07:50:03 Sessions 29 Manual Loads 0 Difficulty Rogue Special Mode None Game No. 838 Rogue 838 Adventurer 0 Explorer 0 Win Type - Total 24 Types 11/1/3/3/2/0/2/2/0/0 Lore% 96 Gallery% 93 Achievement% 82 Wizard Run 0 Options --------- Layout 0 ASCII 0 Keyboard 0 Movement Mouse Keybinds 0 Fullscreen 1 Font 24/Terminus Map View 76x50 Zoom Use 0% Tactical HUD 1 Map Filters NONE Filters NONE Steam 1 RUN: 2bea274e-a35e-4566-a656-7d8c7fb11dde